bitfinex/quotes_ETHUSD_20220309
["timestamp","ask_amount","ask_price","bid_price","bid_amount"]
[1646854337489,0.01076866,2704.6,2704.1,1.62554095]
[1646854337693,0.01076866,2704.6,2704.1,2.36374095]
[1646854338695,0.01076866,2704.6,2704.1,1.1079]
[1646854338897,0.01076866,2704.6,2703.6,0.15034378]
[1646854338898,0.01076866,2704.6,2703.7,0.3]
[1646854339093,0.01076866,2704.6,2703.6,0.15034378]
[1646854339295,0.04092649,2704.1,2703.6,0.15034378]
[1646854339737,0.04035806,2704.0,2703.7,1.37319256]
[1646854340538,0.04444908,2704.0,2703.7,1.37319256]
[1646854340738,0.04832878,2704.2,2703.8,4.0]
[1646854341138,0.04832878,2704.2,2704.0,0.3697]
[1646854341343,0.04832878,2704.2,2704.1,0.3697]
[1646854341544,0.04832878,2704.2,2704.1,0.6697]
[1646854341937,0.04832878,2704.2,2704.1,0.3]
[1646854342137,0.04832878,2704.2,2703.9,1.3]
[1646854342340,0.04832878,2704.2,2703.9,0.3]
[1646854342540,0.04832878,2704.2,2703.9,0.92481]
[1646854342741,0.04832878,2704.2,2704.0,0.3]
[1646854342938,0.04832878,2704.2,2704.0,5.0507]
[1646854343191,0.04832878,2704.2,2704.1,3.8697]
[1646854343395,0.04832878,2704.2,2704.1,4.1697]
[1646854343596,0.04832878,2704.2,2704.1,5.1697]
[1646854343796,0.0415239,2704.3,2704.2,5.8697]
[1646854343998,0.0415239,2704.3,2704.2,1.18828237]
[1646854344203,0.09317236,2705.1,2704.2,2.18828237]
[1646854344396,0.09317236,2705.1,2704.2,1.18828237]
[1646854344798,0.09317236,2705.1,2704.2,2.12505137]
[1646854344997,0.15892408,2705.1,2704.2,2.12505137]
[1646854345197,0.15892408,2705.1,2704.3,3.5]
[1646854345396,0.00397537,2704.8,2704.2,1.18828237]
[1646854345998,0.00397537,2704.8,2704.1,0.6]
[1646854345999,0.00397537,2704.8,2704.1,0.0012]
[1646854346397,0.01153392,2704.9,2704.1,0.0012]
[1646854346599,0.00398721,2704.6,2704.1,0.0012]
[1646854347056,0.00398721,2704.6,2704.5,1.1643041]
[1646854347057,0.02552453,2704.6,2704.5,1.1643041]
[1646854347446,0.02153732,2704.6,2704.5,1.1643041]
[1646854347645,0.02153732,2704.6,2704.5,1.2336807]
[1646854349250,0.02153732,2704.6,2704.5,1.5336807]
[1646854349455,0.02153732,2704.6,2704.5,2.0626041]
[1646854349652,0.02153732,2704.6,2704.5,16.8226041]
[1646854349952,0.02153732,2704.6,2704.5,17.8226041]
[1646854350152,3.732e-05,2704.6,2704.5,17.8226041]
[1646854350355,0.03738708,2704.8,2704.7,11.58662536]
[1646854350556,0.10226044,2706.0,2705.2,0.3697]
[1646854350787,0.10226044,2706.0,2705.2,0.3]
[1646854350788,0.06292348,2705.5,2705.2,0.3]
[1646854350990,0.06292348,2705.5,2705.2,0.6]
[1646854351187,0.06292348,2705.5,2705.2,0.3]
[1646854351388,0.10904172,2705.5,2705.3,0.88292869]
[1646854351790,0.10904172,2705.5,2705.3,1.18292869]
[1646854352592,0.10904172,2705.5,2705.3,0.3]
[1646854352791,0.10904172,2705.5,2705.1,0.92354879]
[1646854353596,0.10904172,2705.5,2705.1,0.55384879]
[1646854353795,0.00409217,2705.4,2705.1,0.25384879]
[1646854354197,0.01313389,2705.4,2705.1,0.25384879]
[1646854354449,1.01313389,2705.4,2705.1,0.25384879]
[1646854354839,5.5,2705.3,2704.6,0.0008]
[1646854355042,0.92816668,2704.7,2704.6,0.0008]
[1646854355737,0.87816668,2704.7,2704.6,0.0008]
[1646854356339,0.99913389,2704.8,2704.6,0.0008]
[1646854356540,0.04613568,2704.9,2704.6,0.0008]
[1646854357343,1.21082463,2705.0,2704.6,0.0008]
[1646854357539,1.01843789,2705.4,2704.6,0.0008]
[1646854357540,0.99526957,2705.3,2704.6,0.0008]
[1646854357740,0.02316832,2705.4,2704.6,0.0008]
[1646854357942,0.99926957,2705.2,2704.6,0.0008]
[1646854358189,2.84914957,2705.2,2704.6,0.0008]
[1646854358394,0.99926957,2705.1,2704.6,0.0008]
[1646854358593,0.925,2705.2,2704.6,0.0008]
[1646854358795,13.18426957,2705.2,2704.7,0.00348412]
[1646854358995,11.26,2705.0,2704.7,0.00348412]
[1646854359193,2.84944957,2705.0,2704.7,0.00348412]
[1646854359395,0.99926957,2704.8,2704.7,0.00348412]
[1646854359593,1.92430957,2704.8,2704.6,0.0008]
[1646854359798,1.92430957,2704.8,2704.7,0.00348416]
[1646854359996,1.92430957,2704.8,2704.7,8.416e-05]
[1646854359997,15.18504,2704.8,2704.7,8.416e-05]
[1646854360197,16.48430957,2704.8,2704.7,8.416e-05]
[1646854360397,17.48430957,2704.8,2704.7,8.416e-05]
[1646854360798,17.48430957,2704.8,2704.6,0.0008]
[1646854361296,17.48430957,2704.8,2703.8,1.53629595]
[1646854361297,13.11034,2704.4,2703.8,1.53629595]
[1646854361504,11.26,2704.2,2703.4,0.24787801]
[1646854361696,3.3,2704.3,2703.5,1.53652342]
[1646854361697,12.25926957,2703.9,2703.5,1.53652342]
[1646854361951,0.99926957,2703.8,2703.5,1.53652342]
[1646854362540,3.00175623,2704.6,2703.6,0.07318922]
[1646854362541,1.0,2704.5,2703.6,0.07318922]
[1646854362741,0.3,2704.5,2703.8,0.09006575]
[1646854362943,0.99926957,2704.1,2703.9,1.53652342]
[1646854363142,0.55267813,2704.8,2704.0,0.08930042]
[1646854363143,0.99926957,2704.4,2704.0,0.08930042]
[1646854363345,0.99926957,2704.4,2704.2,0.07197899]
[1646854363544,0.02316832,2704.9,2704.2,0.07197899]
[1646854363545,0.99926957,2704.5,2704.2,0.07197899]
[1646854363747,0.99926957,2704.5,2704.3,1.53627438]
[1646854363946,0.94926957,2704.5,2704.0,0.08244987]
[1646854364145,11.31552407,2705.0,2704.1,1.5362623]
[1646854364146,10.70250664,2705.0,2704.1,1.5362623]
[1646854364346,0.05,2704.4,2704.2,1.5362623]
[1646854364547,0.97521,2704.4,2704.3,1.5362623]
[1646854364750,0.92521,2704.4,2704.3,1.5362623]
[1646854364954,1.92521,2704.4,2704.1,1.53973873]
[1646854365152,1.92521,2704.4,2704.2,1.5362623]
[1646854365348,1.92521,2704.4,2704.1,0.00347643]
[1646854365349,1.0,2704.3,2704.1,0.00347643]
[1646854365549,1.0,2704.3,2704.1,1.53625504]
[1646854365787,1.0,2704.2,2704.1,1.53625504]
[1646854365987,2.15042,2704.4,2704.2,1.4580134]
[1646854366188,2.15042,2704.4,2704.3,1.53625504]
[1646854366588,1.85042,2704.4,2704.3,1.53625504]
[1646854366787,3.15042,2704.4,2704.3,1.53625504]
[1646854367189,14.41042,2704.4,2704.3,1.53625504]
[1646854367594,14.36042,2704.4,2704.3,1.53625504]
[1646854368694,13.18521,2704.4,2704.3,1.53625504]
[1646854368894,13.48521,2704.4,2704.3,1.53625504]
[1646854369096,13.18521,2704.4,2704.3,1.53625504]
[1646854369453,3.7754761,2704.8,2704.3,1.53625504]
[1646854369454,1.0,2704.9,2704.4,0.07170659]
[1646854369642,1.85017,2704.9,2704.5,1.53625504]
[1646854369842,1.0,2705.1,2704.6,1.53625504]
[1646854370042,1.0,2705.0,2704.7,1.53625504]
[1646854370248,1.0,2705.0,2704.8,1.62613179]
[1646854370442,1.92494,2705.0,2704.9,1.53625504]
[1646854371042,1.92494,2705.0,2704.7,1.53625504]
[1646854371643,1.92494,2705.0,2704.8,1.53625504]
[1646854371843,1.92494,2705.0,2704.5,1.1445381]
[1646854371844,1.92494,2705.0,2704.9,1.53625504]
[1646854372045,1.92494,2705.0,2704.6,1.53913875]
[1646854372649,1.92494,2705.0,2704.7,0.0838244]
[1646854372855,1.92494,2705.0,2704.8,1.53625504]
[1646854373694,1.0,2704.9,2704.8,1.61385819]
[1646854373897,1.0,2705.1,2704.8,1.61385819]
[1646854374095,1.3,2705.2,2704.9,1.53625504]
[1646854374294,1.00391443,2705.2,2705.0,1.53625504]
[1646854374494,0.30391443,2705.2,2705.1,1.6215789]
[1646854374896,0.00391443,2705.2,2705.1,1.6215789]
[1646854375094,1.00391443,2705.2,2705.1,1.6215789]
[1646854375295,1.0,2705.2,2705.1,1.6215789]
[1646854377341,1.0,2705.2,2705.1,1.53625504]
[1646854377842,1.0,2705.2,2704.9,1.53625504]
[1646854378144,1.0,2705.0,2704.9,1.53625504]
[1646854378347,1.92493,2705.0,2704.8,0.08750329]
[1646854378545,1.0,2705.0,2704.9,1.53625504]
[1646854379746,1.0,2705.0,2704.8,0.08750329]
[1646854379947,1.0,2705.0,2704.8,0.0012]
[1646854380147,2.85009,2705.0,2704.8,0.0012]
[1646854380349,1.0,2704.9,2704.8,0.0012]
[1646854380547,12.26,2704.9,2704.8,0.0012]
[1646854380798,12.26,2704.9,2704.6,0.00290989]
[1646854380992,15.1104045,2704.9,2704.6,0.00290989]
[1646854381192,12.56,2704.8,2704.4,1.61197804]
[1646854381397,1.9252,2704.7,2704.5,0.07266074]
[1646854381592,1.9252,2704.7,2704.6,0.00290989]
[1646854381793,0.9252,2704.7,2704.6,0.00290989]
[1646854381993,1.9252,2704.7,2704.6,0.00290989]
[1646854382398,1.9252,2704.7,2704.3,0.07396722]
[1646854382592,1.9252,2704.7,2704.5,0.07484462]
[1646854382794,1.0,2704.6,2704.5,0.0029106]
[1646854382993,2.21797272,2704.6,2704.5,0.0029106]
[1646854383598,2.21797272,2704.6,2704.3,0.07864725]
[1646854383996,1.21797272,2704.6,2704.4,0.00291071]
[1646854384197,1.21797272,2704.6,2704.4,1.53896674]
[1646854384449,1.21797272,2704.6,2704.4,0.0933795]
[1646854384450,1.0,2704.5,2704.4,0.0933795]
[1646854384845,0.9252,2704.7,2704.5,0.08037398]
[1646854384846,1.0,2704.7,2704.5,0.08037398]
[1646854385041,0.5422983,2705.0,2704.6,1.53601463]
[1646854385240,1.00392198,2705.2,2704.7,0.07516274]
[1646854385443,1.0,2705.0,2704.7,0.10418174]
[1646854385642,1.0,2705.0,2704.7,0.029019]
[1646854386442,1.92493,2705.0,2704.7,0.029019]
[1646854386642,1.0,2704.9,2704.7,0.029019]
[1646854387042,1.92493,2705.0,2704.7,0.029019]
[1646854387244,1.0,2705.2,2704.8,1.53569393]
[1646854387450,1.00392235,2705.2,2704.8,0.0882129]
[1646854387643,0.00392235,2705.2,2704.8,0.0882129]
[1646854387944,0.00392235,2705.2,2704.9,1.53560277]
[1646854388193,0.00392235,2705.2,2705.1,0.99308269]
[1646854388399,1.96898624,2705.5,2705.1,0.99308269]
[1646854388699,1.96898624,2705.5,2705.2,0.08627981]
[1646854388900,1.96898624,2705.5,2704.9,0.028924]
[1646854389998,1.96898624,2705.5,2705.0,2.76124162]
[1646854389999,0.00392422,2705.3,2705.0,2.76124162]
[1646854390196,0.00392422,2705.3,2705.1,0.07750055]
[1646854390799,1.0,2705.4,2705.1,0.07750055]
[1646854390997,0.96898624,2705.5,2705.1,0.07750055]
[1646854390998,0.04422624,2705.5,2705.1,0.07750055]
[1646854391201,0.04422624,2705.5,2705.2,1.90523394]
[1646854391202,0.00392422,2705.3,2705.2,1.90523394]
[1646854392038,0.04422624,2705.5,2705.2,1.53553394]
[1646854392241,0.00392421,2705.4,2705.3,0.07477822]
[1646854392439,0.00392421,2705.4,2705.3,1.61031216]
[1646854393038,0.00392421,2705.4,2705.3,1.98001216]
[1646854393241,0.04422624,2705.5,2705.3,1.98001216]
[1646854393444,0.04815022,2705.5,2705.3,0.44447822]
[1646854393641,0.04815022,2705.5,2705.3,0.47364622]
[1646854394042,0.04815022,2705.5,2705.3,0.10394622]
[1646854394243,0.04815022,2705.5,2705.3,0.029168]
[1646854394543,0.04815022,2705.5,2705.1,0.10291108]
[1646854394544,0.04422624,2705.5,2705.1,0.10291108]
[1646854394743,0.04815021,2705.5,2705.2,1.53540829]
[1646854394943,0.04815021,2705.5,2705.3,0.09007856]
[1646854395142,0.04815021,2705.5,2705.1,0.08311108]
[1646854395541,0.04422624,2705.5,2705.1,0.08311108]
[1646854395792,0.04422624,2705.5,2705.1,0.0012]
[1646854395994,0.003924,2705.4,2705.1,0.0012]
[1646854396190,0.003924,2705.4,2705.1,0.08170668]
[1646854396395,0.003924,2705.4,2705.2,0.0012]
[1646854396793,0.04422624,2705.5,2705.2,0.0012]
[1646854396994,0.04422624,2705.5,2705.2,0.97035108]
[1646854397193,0.04422624,2705.5,2705.3,0.06984549]
[1646854397194,0.00392403,2705.4,2705.3,0.06984549]
[1646854397594,0.00392403,2705.4,2705.2,0.0012]
[1646854397995,0.04422624,2705.5,2705.2,0.0012]
[1646854398298,0.00392403,2705.4,2705.2,0.0012]
[1646854398506,0.00392403,2705.4,2705.1,0.029201]
[1646854398704,0.00392403,2705.4,2705.1,0.00028002]
[1646854399101,0.00392403,2705.4,2705.1,0.11446881]
[1646854399458,0.04422624,2705.5,2705.3,0.07827734]
[1646854399647,0.00392404,2705.4,2705.3,0.10696234]
[1646854399848,0.00392404,2705.4,2705.3,1.22276974]
[1646854400247,0.00392404,2705.4,2705.3,2.75809416]
[1646854400450,0.04422624,2705.5,2705.3,1.22276974]
[1646854400648,0.04815025,2705.5,2705.4,0.07275741]
[1646854400849,0.04815025,2705.5,2705.4,3.57275741]
[1646854401051,0.1225953,2705.7,2705.6,0.24585733]
[1646854401250,0.12583246,2705.7,2705.6,1.85719156]
[1646854401651,0.10226044,2706.0,2705.7,5.6258]
[1646854401854,0.0726045,2706.3,2706.0,5.8697]
[1646854402053,0.0726045,2706.3,2706.1,5.48872943]
[1646854402251,0.05518914,2706.5,2706.3,5.5]
[1646854402452,0.05518914,2706.5,2706.4,5.50940256]
[1646854402453,0.15057106,2706.5,2706.4,5.50940256]
[1646854402652,0.15057106,2706.5,2706.4,2.00940256]
[1646854402852,0.15057106,2706.5,2706.4,2.88535401]
[1646854403052,0.15057106,2706.5,2706.4,3.88535401]
[1646854403596,0.0392176,2706.8,2706.6,0.3697]
[1646854403597,0.0986518,2706.8,2706.6,0.3697]
[1646854403798,0.0986518,2706.8,2706.7,1.90453645]
[1646854404002,0.0986518,2706.8,2706.6,0.07441201]
[1646854404299,0.10169953,2706.8,2706.6,0.07441201]
[1646854405098,0.0986518,2706.8,2706.6,0.07441201]
[1646854405499,0.10169953,2706.8,2706.6,0.07441201]
[1646854406300,0.0986518,2706.8,2706.6,0.07441201]
[1646854406505,0.0986518,2706.8,2706.6,0.10358001]
[1646854406702,0.10169953,2706.8,2706.6,0.10358001]
[1646854407144,0.10169953,2706.8,2706.7,1.53460918]
[1646854407345,0.10169953,2706.8,2706.7,1.90430918]
[1646854407546,0.0986518,2706.8,2706.7,1.90430918]
[1646854407746,0.0986518,2706.8,2706.7,0.3697]
[1646854408350,0.0986518,2706.8,2706.6,0.10358001]
[1646854408753,0.0986518,2706.8,2706.6,0.07441201]
[1646854409159,0.10275228,2706.8,2706.6,0.07441201]
[1646854409953,0.0986518,2706.8,2706.6,0.07441201]
[1646854410456,0.0986518,2706.8,2706.2,0.029168]
[1646854410457,0.10275228,2706.8,2706.2,0.029168]
[1646854410694,0.10275228,2706.8,2705.8,0.0765746]
[1646854410891,0.10275228,2706.8,2706.1,0.028001]
[1646854411291,1.0,2706.7,2706.3,1.11648086]
[1646854411492,1.0,2706.7,2706.4,0.08198599]
[1646854411696,1.0986518,2706.7,2706.4,0.08198599]
[1646854412691,1.10263379,2706.7,2706.1,0.028001]
[1646854413092,0.10263379,2706.7,2706.1,0.028001]
[1646854413497,0.0476733,2706.9,2706.5,5.5]
[1646854413699,2.90693482,2707.3,2706.5,5.5]
[1646854413700,0.02795428,2707.8,2706.8,0.04138902]
[1646854413899,0.02795428,2707.8,2707.6,0.04195077]
[1646854414096,0.02795428,2707.8,2707.6,1.12585077]
[1646854414302,0.02795428,2707.8,2707.6,1.17039478]
[1646854414548,0.11964058,2707.7,2707.6,1.17039478]
[1646854414748,0.11964058,2707.7,2706.3,6.1271]
[1646854414947,0.11964058,2707.7,2706.6,11.166768]
[1646854415146,0.11964058,2707.7,2707.1,0.028226]
[1646854415147,1.11964058,2707.7,2707.1,0.028226]
[1646854415348,0.11964058,2707.7,2707.1,0.11013398]
[1646854415546,0.11964058,2707.7,2707.2,1.0]
[1646854415747,0.11964058,2707.7,2707.3,0.07173185]
[1646854415950,0.11964058,2707.7,2707.3,0.09978785]
[1646854416347,0.11964058,2707.7,2707.6,0.98418636]
[1646854416549,0.11964058,2707.7,2707.6,1.77613636]
[1646854417750,0.03187607,2707.8,2707.7,5.5]
[1646854417952,0.08828003,2707.8,2707.7,5.5]
[1646854418193,0.08828003,2707.8,2707.6,0.79195]
[1646854418397,0.08828003,2707.8,2707.2,1.0]
[1646854418398,0.08435824,2707.8,2707.2,1.0]
[1646854418596,0.08435824,2707.8,2707.4,0.082806]
[1646854419896,0.00303646,2707.7,2707.4,0.082806]
[1646854420899,0.05640396,2707.7,2707.4,0.082806]
[1646854421198,0.05944042,2707.7,2707.4,0.082806]
[1646854421398,0.24016113,2709.2,2708.1,0.45830836]
[1646854421599,2.16860475,2708.4,2708.1,0.5330454]
[1646854421800,0.95934082,2708.3,2708.1,0.45830836]
[1646854422044,1.16736826,2708.2,2708.1,0.54551641]
[1646854422247,1.46736826,2708.2,2708.1,0.45830836]
[1646854422446,1.06736826,2708.2,2708.1,0.45830836]
[1646854422648,0.0852754,2708.2,2708.1,0.5424098]
[1646854422848,0.0852754,2708.2,2708.1,0.53020767]
[1646854424648,0.0852754,2708.2,2708.1,0.5326017]
[1646854424855,0.0145154,2708.2,2708.1,0.5326017]
[1646854425051,0.0145154,2708.2,2708.1,0.5606057]
[1646854425249,0.0145154,2708.2,2708.1,4.0606057]
[1646854425250,1.54e-05,2708.2,2708.1,4.0606057]
[1646854425450,0.01634684,2708.2,2708.1,4.0606057]
[1646854425713,0.01634684,2708.2,2708.1,5.59450427]
[1646854426108,0.01634684,2708.2,2708.1,2.09450427]
[1646854426307,0.06156382,2708.3,2708.2,17.1297]
[1646854426510,0.03698802,2708.4,2708.3,0.13060788]
[1646854426708,0.03698802,2708.4,2708.3,1.05375788]
[1646854427110,0.03698802,2708.4,2708.3,2.58750491]
[1646854427515,0.03698802,2708.4,2708.3,1.66435491]
[1646854428313,0.03698802,2708.4,2708.3,0.13060788]
[1646854429458,0.03698802,2708.4,2708.3,0.06910788]
[1646854431949,0.03698802,2708.4,2708.3,0.09710988]
[1646854432149,0.03698802,2708.4,2708.3,0.12627788]
[1646854432351,0.0325042,2708.5,2708.4,5.5]
[1646854432554,0.0325042,2708.5,2708.4,8.36296212]
[1646854432748,0.03309164,2708.6,2708.5,5.63839177]
[1646854432948,0.03309164,2708.6,2708.5,7.20135389]
[1646854433201,0.03309164,2708.6,2708.5,8.41928447]
[1646854433405,0.03309164,2708.6,2708.5,2.91928447]
[1646854433705,0.03309164,2708.6,2708.5,1.35632235]
[1646854433904,0.03309164,2708.6,2708.5,0.06500839]
[1646854434904,0.03309164,2708.6,2708.5,1.1683859]
[1646854435503,0.03309164,2708.6,2708.5,0.06500839]
[1646854437055,0.03309164,2708.6,2708.5,0.09417639]
[1646854437452,0.03309164,2708.6,2708.5,0.04417639]
[1646854438455,0.03309164,2708.6,2708.5,1.57793848]
[1646854438658,0.04116106,2708.8,2708.7,0.08859126]
[1646854438857,0.04116106,2708.8,2708.7,5.52122135]
[1646854439055,0.04116106,2708.8,2708.7,5.82122135]
[1646854439255,0.04116106,2708.8,2708.7,6.73263009]
[1646854439457,0.04116106,2708.8,2708.7,7.90572867]
[1646854439658,0.02155916,2708.9,2708.8,5.0]
[1646854439857,0.02155916,2708.9,2708.8,5.910667]
[1646854440058,0.02155916,2708.9,2708.8,7.44442909]
[1646854440694,0.02155916,2708.9,2708.8,7.81412909]
[1646854440895,6.862e-05,2709.2,2709.0,0.3697]
[1646854441098,0.03539524,2709.6,2709.2,0.3697]
[1646854441099,0.0336444,2709.6,2709.2,0.3697]
[1646854441298,2.36226858,2710.1,2709.4,5.5]
[1646854441497,2.36226858,2710.1,2709.5,1.56293009]
[1646854441695,2.36226858,2710.1,2709.8,0.028531]
[1646854441895,2.36226858,2710.1,2709.8,0.056756]
[1646854442096,2.31226858,2710.1,2709.9,1.19669451]
[1646854442396,2.31226858,2710.1,2709.9,1.22481351]
[1646854442900,2.31636914,2710.1,2709.9,1.22481351]
[1646854443699,2.31226858,2710.1,2709.9,1.22481351]
[1646854443901,2.31636914,2710.1,2709.9,0.028119]
[1646854444301,2.31636914,2710.1,2709.8,0.056756]
[1646854444546,2.31636914,2710.1,2709.5,0.028001]
[1646854444745,2.31636914,2710.1,2709.5,0.028093]
[1646854444949,3.25385709,2710.1,2709.6,1.53323622]
[1646854445147,3.25795767,2710.1,2709.6,1.53323622]
[1646854445347,3.25795767,2710.1,2709.6,1.56138422]
[1646854445550,3.31546202,2710.1,2709.6,1.56138422]
[1646854445746,2.31636916,2710.1,2709.6,1.56138422]
[1646854446148,2.31226858,2710.1,2709.6,0.028148]
[1646854446348,2.31226858,2710.1,2709.7,1.53324729]
[1646854446349,0.00410062,2710.0,2709.7,1.53324729]
[1646854446549,0.00410062,2710.0,2709.7,1.56128229]
[1646854446747,0.00410062,2710.0,2709.8,1.53324729]
[1646854447348,2.31226858,2710.1,2709.8,1.53324729]
[1646854447547,0.00403251,2710.0,2709.8,1.53324729]
[1646854447747,0.00403251,2710.0,2709.9,0.029168]
[1646854447948,0.00403251,2710.0,2709.2,0.1844]
[1646854448201,0.00403251,2710.0,2709.3,1.56174103]
[1646854448403,3.31136144,2710.1,2709.4,1.56161303]
[1646854448603,3.31136144,2710.1,2709.5,1.59031303]
[1646854448804,0.00403263,2709.7,2709.6,1.56179903]
[1646854449006,0.00403263,2709.7,2709.6,1.53326803]
[1646854449609,2.31226858,2710.1,2709.6,0.0736418]
[1646854450011,0.00403261,2709.8,2709.6,0.028025]
[1646854450209,0.90316325,2709.7,2709.4,0.028001]
[1646854450408,0.90316325,2709.7,2709.5,1.53335839]
[1646854450609,0.90316325,2709.7,2709.4,1.53335839]
[1646854450812,0.90316325,2709.7,2709.5,1.53335839]
[1646854451010,0.99909286,2709.8,2709.3,0.11521596]
[1646854451208,0.99909286,2709.8,2709.4,1.53334662]
[1646854451410,3.31136144,2710.1,2709.5,0.07955845]
[1646854451613,0.99909286,2709.8,2709.6,1.53334662]
[1646854451808,0.99909286,2709.8,2709.5,0.028136]
[1646854452046,0.99909286,2709.8,2709.4,0.028254]
[1646854452247,0.99909286,2709.8,2709.5,1.53335165]
[1646854452645,0.99909286,2709.8,2709.5,0.028136]
[1646854452846,0.99909286,2709.8,2709.4,0.056104]
[1646854453045,0.99909286,2709.8,2709.5,1.53334727]
[1646854453249,0.99909286,2709.8,2709.3,0.11437494]
[1646854453453,0.99909286,2709.8,2709.4,1.53339459]
[1646854453649,1.13579817,2709.5,2709.4,1.53339459]
[1646854454050,0.99909286,2709.8,2709.4,1.53339459]
[1646854454449,1.92237286,2709.8,2709.4,1.53339459]
[1646854454755,1.92237286,2709.8,2709.3,0.057202]
[1646854454756,0.00403745,2709.7,2709.3,0.057202]
[1646854454950,0.00403745,2709.7,2709.3,0.0012]
[1646854455148,1.01979184,2709.5,2709.3,0.0012]
[1646854455350,0.00403745,2709.7,2709.3,0.0012]
[1646854455552,11.26403745,2709.7,2709.3,0.08562711]
[1646854455799,12.18338,2709.5,2709.3,0.0012]
[1646854456000,12.18741753,2709.5,2709.3,0.0012]
[1646854456402,12.25909286,2709.4,2709.3,0.0012]
[1646854456800,13.36654398,2709.4,2709.3,0.0012]
[1646854457401,12.36745112,2709.4,2709.3,0.0012]
[1646854457604,2.10654398,2709.4,2709.3,0.0012]
[1646854457902,0.00403755,2709.5,2709.3,1.53471838]
[1646854458102,0.99909286,2709.6,2709.3,0.0012]
[1646854458302,0.99909286,2709.4,2709.3,0.0012]
[1646854458506,12.25909286,2709.4,2709.3,0.0012]
[1646854459103,13.42144342,2709.4,2709.3,0.0012]
[1646854459462,16.72144342,2709.4,2709.3,0.0012]
[1646854459649,17.72144342,2709.4,2709.3,0.0012]
[1646854460255,11.26,2709.1,2708.5,0.01500839]
[1646854460652,12.18366,2708.8,2708.6,1.53379852]
[1646854460853,11.26,2708.7,2708.6,1.53379852]
[1646854461063,16.76,2708.6,2708.5,0.01500839]
[1646854461354,15.12389888,2708.6,2708.5,0.01500839]
[1646854461556,11.26,2708.4,2708.1,0.45131775]
[1646854461752,0.92385,2708.5,2708.1,0.42331675]
[1646854461952,0.99909286,2708.2,2708.1,0.42331675]
[1646854462554,0.99909286,2708.2,2708.1,0.4212901]
[1646854462853,12.25909286,2708.2,2708.1,0.4212901]
[1646854463502,12.25909286,2708.2,2707.5,0.11739728]
[1646854463503,12.184,2708.0,2707.5,0.028001]
[1646854463708,12.184,2708.0,2707.3,0.028001]
[1646854463903,12.25909286,2707.6,2707.3,0.028001]
[1646854464103,0.99909286,2707.4,2707.1,0.10068575]
[1646854464508,1.22412,2707.7,2707.1,0.10068575]
[1646854464509,0.99909286,2707.3,2707.1,0.10068575]
[1646854464903,0.3,2707.7,2707.1,0.10068575]
[1646854465301,0.99909286,2707.9,2707.1,0.10068575]
[1646854465501,0.99909286,2707.9,2707.3,0.028251]
[1646854465701,0.99909286,2707.9,2707.5,0.9712141]
[1646854465904,0.99909286,2707.9,2707.4,0.028199]
[1646854465905,0.99909286,2707.9,2707.6,0.07075444]
[1646854466102,0.99909286,2707.9,2707.4,0.028199]
[1646854466504,0.99909286,2707.7,2707.4,0.028199]
[1646854466958,0.99809286,2708.0,2707.5,0.0029596]
[1646854467346,3.559,2708.3,2707.6,0.02818]
[1646854467548,3.559,2708.3,2707.8,0.028339]
[1646854467549,0.99909286,2708.1,2707.8,0.028339]
[1646854467948,4.55809286,2708.3,2707.8,0.028339]
[1646854468350,0.99909286,2708.2,2707.4,0.11738085]
[1646854468551,0.924,2708.1,2707.4,0.028199]
[1646854468751,0.99909286,2707.9,2707.4,0.028199]
[1646854468955,0.99909286,2707.8,2707.4,0.028199]
[1646854469352,3.87063214,2709.1,2707.6,4.0]
[1646854469556,0.00300696,2708.8,2708.0,0.028531]
[1646854469754,0.00300696,2708.8,2708.4,0.028531]
[1646854469957,0.00300696,2708.8,2708.5,0.028205]
[1646854470153,0.92354,2709.3,2708.5,0.028205]
[1646854470353,1.15570828,2709.2,2708.7,0.028315]
[1646854470555,0.00300791,2708.8,2708.7,0.028315]
[1646854470810,0.00300791,2708.8,2708.2,0.028001]
[1646854471001,11.26300791,2708.8,2708.0,0.028001]
[1646854471201,12.26300791,2708.8,2708.0,0.028001]
[1646854471401,12.26,2708.6,2708.0,0.028001]
[1646854471606,12.26,2708.6,2708.0,0.03162442]
[1646854471607,1.04509905,2708.3,2708.0,0.03162442]
[1646854472002,1.04509905,2708.3,2708.0,0.00362342]
[1646854472204,12.30509905,2708.3,2708.0,0.00362342]
[1646854472404,12.26,2708.1,2708.0,0.00362342]
[1646854472604,12.26,2708.1,2707.4,0.028001]
[1646854472802,12.26,2708.1,2708.0,0.00362342]
[1646854473005,11.26,2708.1,2708.0,0.00362342]
[1646854473408,12.26,2708.1,2708.0,0.00362342]
[1646854473809,12.26,2708.1,2707.6,0.028001]
[1646854474214,12.26,2708.1,2707.9,0.00362355]
[1646854474215,11.26,2708.1,2707.9,0.00362355]
[1646854474459,11.26,2708.0,2707.9,0.00362355]
[1646854474849,12.26,2708.0,2707.9,0.00362355]
[1646854475049,12.26,2708.0,2707.6,0.028001]
[1646854475249,1.0,2708.0,2707.6,0.028001]
[1646854475452,4.43725905,2708.3,2707.8,0.00362369]
[1646854475650,1.96895905,2708.3,2707.8,0.00362369]
[1646854476151,1.0,2707.9,2707.8,0.00362369]
[1646854476354,1.0,2707.9,2707.6,0.028001]
[1646854476758,1.0,2707.8,2707.6,0.028001]
[1646854477152,1.0,2707.8,2707.4,0.028001]
[1646854477351,1.0,2707.8,2707.5,1.02566058]
[1646854477553,11.26,2708.0,2707.6,0.0739201]
[1646854477752,11.26,2708.0,2707.6,0.10499815]
[1646854477952,1.0,2708.2,2707.6,0.10499815]
[1646854478202,1.0,2708.0,2707.7,0.028158]
[1646854479105,1.0,2708.0,2707.7,0.03122888]
[1646854479309,1.0,2708.0,2707.8,0.028238]
[1646854479504,1.0,2708.0,2707.7,0.03122888]
[1646854479505,12.26,2708.0,2707.7,0.03122888]
[1646854479905,12.26,2708.0,2707.7,0.028158]
[1646854480105,12.26,2708.0,2707.8,0.00304414]
[1646854480306,0.98796567,2707.9,2707.8,0.00304414]
[1646854480805,1.98796567,2707.9,2707.8,0.00304414]
[1646854481006,1.98796567,2707.9,2707.7,0.028158]
[1646854481207,1.98796567,2707.9,2707.6,0.028007]
[1646854481409,0.35176831,2707.9,2707.7,0.0030442]
[1646854481811,1.0,2707.8,2707.7,0.0030442]
[1646854482247,1.35176831,2707.9,2707.6,0.028007]
[1646854482450,1.0,2707.8,2707.6,0.028007]
[1646854482649,1.0,2707.8,2707.6,0.03105131]
[1646854483551,1.0,2707.8,2707.6,0.028007]